fUST/lending_fUST_20260117
["ID","MTS","AMOUNT","RATE_DAILY","PERIOD"]
[402257611,1768626648854,-500.0,0.00019178,3]
[402257612,1768626648864,-500.0,0.00019178,3]
[402257613,1768626648873,-627.98,0.00019178,3]
[402257614,1768626648883,-2489.47,0.00019178,3]
[402257615,1768626648892,-508.51651972,0.00019178,3]
[402257616,1768626648901,-565.74,0.00019178,3]
[402257617,1768626648910,-603.08,0.00019178,3]
[402257618,1768626648920,-500.0,0.00019178,3]
[402257619,1768626648930,-1732.14,0.00019178,3]
[402257620,1768626648940,-500.0,0.00019178,3]
[402257621,1768626648949,-723.07,0.00019178,3]
[402257622,1768626648959,-500.0,0.00019178,3]
[402257623,1768626648968,-858.73,0.00019178,3]
[402257624,1768626648978,-500.0,0.00019178,3]
[402257625,1768626648987,-685.57,0.00019178,3]
[402257626,1768626648996,-500.0,0.00019178,3]
[402257627,1768626649006,-500.0,0.00019178,3]
[402257628,1768626649019,-500.0,0.00019178,3]
[402257629,1768626649028,-528.93,0.00019178,3]
[402257630,1768626649038,-500.0,0.00019178,3]
[402257631,1768626649050,-332.91217118,0.00019178,3]
[402257632,1768626649060,-674.1,0.00019178,3]
[402257633,1768626649069,-590.01,0.00019178,3]
[402257634,1768626649080,-500.0,0.00019178,3]
[402257635,1768626649090,-500.0,0.00019178,3]
[402257636,1768626649099,-607.17,0.00019178,3]
[402257637,1768626649108,-500.0,0.00019178,3]
[402257638,1768626649117,-500.0,0.00019178,3]
[402257639,1768626649126,-233.19102223,0.00019178,3]
[402257640,1768626649135,-500.0,0.00019178,3]
[402257641,1768626649146,-543.92,0.00019178,3]
[402257642,1768626649155,-765.07,0.00019178,3]
[402257643,1768626649164,-1238.53,0.00019178,3]
[402257644,1768626649173,-500.0,0.00019178,3]
[402257645,1768626649182,-657.53,0.00019178,3]
[402257646,1768626649191,-355.97567578,0.00019178,3]
[402257647,1768626649201,-500.0,0.00019178,3]
[402257648,1768626649210,-1118.79,0.00019178,3]
[402257649,1768626649220,-500.0,0.00019178,3]
[402257650,1768626649229,-1092.11,0.00019178,3]
[402257651,1768626649239,-500.0,0.00019178,3]
[402257652,1768626649249,-500.0,0.00019178,3]
[402257653,1768626649259,-500.0,0.00019178,3]
[402257654,1768626649268,-500.0,0.00019178,3]
[402257655,1768626649279,-566.39019728,0.00019178,3]
[402257656,1768626649289,-960.95,0.00019178,3]
[402257657,1768626649298,-500.0,0.00019178,3]
[402257658,1768626649308,-500.0,0.00019178,3]
[402257659,1768626649317,-602.97,0.00019178,3]
[402257660,1768626649326,-500.0,0.00019178,3]
[402257661,1768626649336,-1698.81,0.00019178,3]
[402257662,1768626649346,-1119.41,0.00019178,3]
[402257663,1768626649357,-1023.1,0.00019178,3]
[402257664,1768626649367,-2042.09,0.00019178,3]
[402257665,1768626649377,-853.91,0.00019178,3]
[402257666,1768626649387,-500.0,0.00019178,3]
[402257667,1768626649397,-500.0,0.00019178,3]
[402257668,1768626649407,-500.0,0.00019178,3]
[402257669,1768626649417,-1683.23,0.00019178,3]
[402257670,1768626649427,-513.27339487,0.00019178,3]
[402257671,1768626649437,-500.0,0.00019178,3]
[402257672,1768626649447,-500.0,0.00019178,3]
[402257673,1768626649457,-500.0,0.00019178,3]
[402257674,1768626649467,-599.53,0.00019178,3]
[402257675,1768626649478,-500.0,0.00019178,3]
[402257676,1768626649487,-1743.64,0.00019178,3]
[402257677,1768626649497,-1293.83,0.00019178,3]
[402257678,1768626649506,-500.0,0.00019178,3]
[402257679,1768626649516,-1005.03,0.00019178,3]
[402257680,1768626649526,-500.0,0.00019178,3]
[402257681,1768626649535,-500.0,0.00019178,3]
[402257682,1768626649544,-500.0,0.00019178,3]
[402257683,1768626649553,-500.0,0.00019178,3]
[402257684,1768626649563,-500.0,0.00019178,3]
[402257685,1768626649573,-500.0,0.00019178,3]
[402257686,1768626649583,-1884.77,0.00019178,3]
[402257687,1768626649593,-567.51,0.00019178,3]
[402257688,1768626649602,-500.0,0.00019178,3]
[402257689,1768626649612,-500.0,0.00019178,3]
[402257690,1768626649622,-630.38,0.00019178,3]
[402257691,1768626649632,-500.0,0.00019178,3]
[402257692,1768626649642,-982.26,0.00019178,3]
[402257693,1768626649652,-500.0,0.00019178,3]
[402257694,1768626649662,-500.0,0.00019178,3]
[402257695,1768626649671,-375.19693951,0.00019178,3]
[402257696,1768626649680,-1722.58,0.00019178,2]
[402257697,1768626649688,-2128.12,0.00019178,3]
[402257698,1768626649698,-1722.58,0.00019178,2]
[402257699,1768626649707,-1722.58,0.00019178,2]
[402257700,1768626649717,-500.0,0.00019178,3]
[402257701,1768626649726,-1363.24535114,0.00019178,2]
[402257702,1768626650252,-359.33464886,0.00019178,2]
[402257703,1768626650262,-500.0,0.00019178,3]
[402257704,1768626650273,-1722.58,0.00019178,2]
[402257705,1768626650283,-1722.58,0.00019178,2]
[402257706,1768626650292,-1722.58,0.00019178,2]
[402257707,1768626650302,-1722.58,0.00019178,2]
[402257708,1768626650312,-1722.58,0.00019178,2]
[402257709,1768626650322,-1722.58,0.00019178,2]
[402257710,1768626650331,-1722.58,0.00019178,2]
[402257711,1768626650341,-352.40152281,0.00019178,3]
[402257712,1768626651194,-152.0,0.00019034,2]
[402257713,1768626651204,-152.0,0.00019034,2]
[402257714,1768626651214,-152.0,0.00019034,2]
[402257715,1768626651224,-269.20847719,0.00019178,3]
[402257716,1768626651234,-1722.58,0.00019178,2]
[402257717,1768626651243,-931.71,0.00019178,3]
[402257718,1768626651252,-1722.58,0.00019178,2]
[402257719,1768626651262,-57.50276364,0.00019178,3]
[402257849,1768627838016,-892.0,0.00012678,2]
[402257851,1768627838026,-363.29690221,0.00012678,2]
[402257853,1768627838038,-235.70309779,0.00012678,2]
[402257854,1768627838048,-161.10997876,0.00012807,2]
[402257855,1768627838058,-1127.0,0.00013,2]
[402257856,1768627838068,-190.10977493,0.00014807,2]
[402257857,1768627838077,-1364.63306956,0.00015,2]
[402257874,1768627840128,-140.26498041,0.00015,2]
[402257876,1768627840140,-1000.0,0.0001538,2]
[402257878,1768627840151,-219.10957111,0.00016807,2]
[402257881,1768627840161,-500.0,0.00017624,2]
[402257883,1768627840172,-500.0,0.00017624,2]
[402257884,1768627840182,-500.0,0.00017624,2]
[402257885,1768627840192,-500.0,0.00017624,2]
[402257886,1768627840202,-500.0,0.00017624,2]
[402257887,1768627840212,-248.07998059,0.00017624,2]
[402257888,1768627840223,-3360.3719959,0.00017625,2]
[402258426,1768627846073,-445.202766,0.00017702,2]
[402258428,1768627846083,-305.74770377,0.00017702,2]
[402258430,1768627846092,-2150.738,0.00017702,2]
[402258432,1768627846101,-151.0,0.000179,2]
[402258434,1768627846110,-151.0,0.000179,2]
[402258436,1768627846119,-151.0,0.00018,2]
[402258438,1768627846128,-15030.07054951,0.00018005,2]
[402258439,1768627846137,-160.15,0.00018006,3]
[402258440,1768627846146,-480.45,0.00018006,3]
[402258441,1768627846155,-265.85778419,0.00018015,2]
[402258442,1768627846164,-331.12773425,0.00018015,2]
[402258443,1768627846174,-164365.77248584,0.00018016,2]
[402258465,1768628303045,-300.0,0.0001327,2]
[402258466,1768628303067,-542.37851933,0.00013271,2]
[402258467,1768628303089,-157.62148067,0.00013271,2]
[402258468,1768628305046,-342.37851933,0.00013271,2]
[402258469,1768628305068,-500.0,0.00013271,2]
[402258470,1768628305089,-157.62148067,0.00013271,2]
[402258471,1768628306183,-342.37851933,0.00013271,2]
[402258472,1768628306204,-500.0,0.00013271,2]
[402258473,1768628306226,-157.62148067,0.00013271,2]
[402258474,1768628306549,-342.37851933,0.00013271,2]
[402258475,1768628306570,-500.0,0.00013271,2]
[402258476,1768628306591,-157.62148067,0.00013271,2]
[402258477,1768628306893,-342.37851933,0.00013271,2]
[402258478,1768628306914,-500.0,0.00013271,2]
[402258479,1768628306935,-157.62148067,0.00013271,2]
[402258480,1768628307225,-342.37851933,0.00013271,2]
[402258481,1768628307245,-500.0,0.00013271,2]
[402258482,1768628307268,-157.62148067,0.00013271,2]
[402258483,1768628307602,-342.37851933,0.00013271,2]
[402258484,1768628307622,-634.88543536,0.00013271,2]
[402258485,1768628307642,-22.73604531,0.00013271,2]
[402258486,1768628307902,-477.26395469,0.00013271,2]
[402258487,1768628307925,-500.0,0.00013271,2]
[402258488,1768628307945,-22.73604531,0.00013271,2]
[402258489,1768628308267,-530.28912042,0.00013271,2]
[402258490,1768628308288,-469.71087958,0.00013271,2]
[402258491,1768628308623,-30.28912042,0.00013271,2]
[402258492,1768628308642,-500.0,0.00013271,2]
[402258493,1768628308662,-469.71087958,0.00013271,2]
[402258494,1768628308912,-30.28912042,0.00013271,2]
[402258495,1768628308934,-500.0,0.00013271,2]
[402258496,1768628308955,-469.71087958,0.00013271,2]
[402258497,1768628310320,-30.28912042,0.00013271,2]
[402258498,1768628310342,-500.0,0.00013271,2]
[402258499,1768628310363,-469.71087958,0.00013271,2]
[402258500,1768628310670,-30.28912042,0.00013271,2]
[402258501,1768628310692,-500.0,0.00013271,2]
[402258502,1768628310712,-469.71087958,0.00013271,2]
[402258503,1768628311071,-30.28912042,0.00013271,2]
[402258504,1768628311091,-500.0,0.00013271,2]
[402258505,1768628311111,-469.71087958,0.00013271,2]
[402258506,1768628311627,-30.28912042,0.00013271,2]
[402258507,1768628311648,-500.0,0.00013271,2]
[402258508,1768628311669,-469.71087958,0.00013271,2]
[402258509,1768628314710,-30.28912042,0.00013271,2]
[402258510,1768628314735,-500.0,0.00013271,2]
[402258511,1768628314757,-469.71087958,0.00013271,2]
[402258512,1768628315722,-30.28912042,0.00013271,2]
[402258513,1768628315743,-500.0,0.00013271,2]
[402258514,1768628315763,-469.71087958,0.00013271,2]
[402258515,1768628316955,-30.28912042,0.00013271,2]
[402258516,1768628316978,-500.0,0.00013271,2]
[402258517,1768628317000,-469.71087958,0.00013271,2]
[402258518,1768628318116,-30.28912042,0.00013271,2]
[402258519,1768628318142,-500.0,0.00013271,2]
[402258520,1768628318167,-469.71087958,0.00013271,2]
[402258521,1768628319593,-30.28912042,0.00013271,2]
[402258522,1768628319613,-500.0,0.00013271,2]
[402258523,1768628319634,-469.71087958,0.00013271,2]
[402258524,1768628320949,-30.28912042,0.00013271,2]
[402258525,1768628320972,-500.0,0.00013271,2]
[402258526,1768628320995,-469.71087958,0.00013271,2]
[402258527,1768628322409,-30.28912042,0.00013271,2]
[402258528,1768628322435,-500.0,0.00013271,2]
[402258529,1768628322459,-469.71087958,0.00013271,2]
[402258530,1768628323917,-30.28912042,0.00013271,2]
[402258531,1768628323945,-500.0,0.00013271,2]
[402258532,1768628323971,-469.71087958,0.00013271,2]
[402258533,1768628326317,-30.28912042,0.00013271,2]
[402258534,1768628326339,-500.0,0.00013271,2]
[402258535,1768628326359,-469.71087958,0.00013271,2]
[402258536,1768628328090,-30.28912042,0.00013271,2]
[402258537,1768628328114,-969.71087958,0.00013271,2]
[402258538,1768628333376,-500.0,0.00013271,2]
[402258639,1768629031949,-1062.0942092,0.00011607,2]
[402258715,1768629038012,-3937.9057908,0.00011607,2]
[402258717,1768629038023,-583.0,0.00011607,2]
[402258719,1768629038033,-184.91267243,0.00011666,2]
[402258721,1768629038043,-593.0,0.00011723,2]
[402258723,1768629038052,-5000.0,0.00011724,2]
[402258724,1768629038062,-300.0,0.00012139,2]
[402258725,1768629038072,-300.0,0.00012139,2]
[402258726,1768629038081,-300.0,0.00012139,2]
[402258727,1768629038091,-300.0,0.00012139,2]
[402258728,1768629038101,-300.0,0.00012141,2]
[402258729,1768629038111,-178.75,0.00012329,2]
[402258730,1768629038121,-893.8,0.00012329,2]
[402258731,1768629038131,-151.0,0.00013128,2]
[402258732,1768629038140,-749.5762533,0.00013271,2]
[402258733,1768629038515,-464.5715499,0.00013271,2]
[402258734,1768629038526,-501.35371078,0.00013273,2]
[402258735,1768629038535,-500.0,0.00013273,2]
[402258736,1768629038545,-500.0,0.00013273,2]
[402258737,1768629038555,-500.0,0.00013273,2]
[402258738,1768629038569,-501.40113116,0.00013273,2]
[402258739,1768629038578,-500.0,0.00013273,2]
[402258740,1768629038588,-500.0,0.00013273,2]
[402258741,1768629038597,-500.0,0.00013273,2]
[402258742,1768629038607,-500.0,0.00013273,2]
[402258743,1768629038617,-500.0,0.00013273,2]
[402258744,1768629038627,-500.0,0.00013273,2]
[402258745,1768629038636,-500.0,0.00013273,2]
[402258746,1768629038646,-501.90773832,0.00013273,2]
[402258747,1768629038656,-501.80712865,0.00013273,2]
[402258748,1768629038666,-500.0,0.00013273,2]
[402258749,1768629038675,-500.77652519,0.00013273,2]
[402258750,1768629038684,-501.70182387,0.00013273,2]
[402258751,1768629038694,-503.71402261,0.00013273,2]
[402258752,1768629038704,-500.0,0.00013273,2]
[402258753,1768629038713,-502.50394649,0.00013273,2]
[402258754,1768629038723,-500.0,0.00013273,2]
[402258755,1768629038733,-501.71213345,0.00013273,2]
[402258756,1768629038743,-500.0,0.00013273,2]
[402258757,1768629038753,-500.0,0.00013273,2]
[402258758,1768629038762,-500.0,0.00013273,2]
[402258759,1768629038772,-501.95512252,0.00013273,2]
[402258760,1768629038782,-159.52974715,0.00013273,2]
[402258761,1768629038792,-500.0,0.00013273,2]
[402258762,1768629038802,-500.0,0.00013273,2]
[402258763,1768629038812,-269.04936218,0.00013273,2]
[402258764,1768629038822,-500.0,0.00013273,2]
[402258765,1768629038832,-232.71170861,0.00013273,2]
[402258766,1768629038842,-500.0,0.00013273,2]
[402258767,1768629038852,-500.0,0.00013273,2]
[402258768,1768629038861,-500.0,0.00013273,2]
[402258769,1768629038872,-500.0,0.00013273,2]
[402258770,1768629038882,-500.0,0.00013273,2]
[402258771,1768629038891,-1328.87585776,0.00013319,2]
[402258772,1768629038901,-420.0,0.00013324,2]
[402258773,1768629038911,-369.59849122,0.00013327,2]
[402258774,1768629038920,-221.0,0.00013355,2]
[402258775,1768629038929,-500.0,0.00013547,2]
[402258776,1768629038938,-218.19695346,0.00013666,2]
[402258777,1768629038948,-300.0,0.00013673,2]
[402258778,1768629038957,-500.0,0.00013698,2]
[402258779,1768629038967,-500.0,0.00013698,2]
[402258780,1768629038977,-500.0,0.00013698,2]
[402258781,1768629038986,-500.0,0.00013698,2]
[402258782,1768629038996,-500.0,0.00013698,2]
[402258783,1768629039005,-500.0,0.00013698,2]
[402258784,1768629039017,-500.0,0.00013698,2]
[402258785,1768629039026,-265.78466193,0.00013698,2]
[402258786,1768629039036,-2321.769867,0.00013699,2]
[402258787,1768629039046,-500.0,0.00013699,2]
[402258788,1768629039055,-500.0,0.00013699,2]
[402258789,1768629039065,-500.0,0.00013699,2]
[402258790,1768629039074,-500.0,0.00013699,2]
[402258791,1768629039084,-251.08543458,0.00013699,2]
[402258792,1768629039094,-500.0,0.00013699,2]
[402258793,1768629039104,-500.0,0.00013699,2]
[402258794,1768629039114,-500.0,0.00013699,2]
[402258795,1768629039124,-500.0,0.00013699,2]
[402258796,1768629039133,-500.0,0.00013699,2]
[402258797,1768629039143,-500.0,0.00013699,2]
[402258798,1768629039153,-505.76612421,0.00013699,2]
[402258799,1768629039162,-500.0,0.00013699,2]
[402258800,1768629039171,-500.0,0.00013699,2]
[402258801,1768629039181,-500.0,0.00013699,2]
[402258802,1768629039191,-502.68760133,0.00013699,2]
[402258803,1768629039200,-500.0,0.00013699,2]
[402258804,1768629039210,-500.0,0.00013699,2]
[402258805,1768629039220,-500.0,0.00013699,2]
[402258806,1768629039229,-500.0,0.00013699,2]
[402258807,1768629039238,-500.0,0.00013699,2]
[402258808,1768629039249,-500.0,0.00013699,2]
[402258809,1768629039258,-308.24685014,0.00013699,2]
[402258810,1768629039268,-340.79556126,0.00013699,2]
[402258811,1768629039278,-524.71947895,0.00013699,2]
[402258812,1768629039287,-500.0,0.00013699,2]
[402258813,1768629039297,-637.98992527,0.00013699,2]
[402258814,1768629039307,-166.49806959,0.00013699,2]
[402258815,1768629039317,-500.0,0.00013699,2]
[402258816,1768629039327,-500.0,0.00013699,2]
[402258817,1768629039336,-500.79489039,0.00013699,2]
[402258818,1768629039346,-526.36402703,0.00013699,2]
[402258819,1768629039355,-500.0,0.00013699,2]
[402258820,1768629039364,-500.0,0.00013699,2]
[402258821,1768629039374,-500.0,0.00013699,2]
[402258822,1768629039383,-500.0,0.00013699,2]
[402258823,1768629039394,-500.0,0.00013699,2]
[402258824,1768629039403,-500.0,0.00013699,2]
[402258825,1768629039413,-500.0,0.00013699,2]
[402258826,1768629039422,-500.0,0.00013699,2]
[402258827,1768629039431,-500.0,0.00013699,2]
[402258828,1768629039442,-173.71867434,0.00013699,2]
[402258829,1768629039452,-535.91571865,0.00013699,2]
[402258830,1768629039462,-158.44145441,0.00013699,2]
[402258832,1768629039471,-500.0,0.00013699,2]
[402258833,1768629039482,-500.0,0.00013699,2]
[402258834,1768629039493,-500.0,0.00013699,2]
[402258835,1768629039502,-500.0,0.00013699,2]
[402258836,1768629039511,-500.0,0.00013699,2]
[402258837,1768629039521,-501.92409365,0.00013699,2]
[402258839,1768629039531,-500.0,0.00013699,2]
[402258840,1768629039542,-500.0,0.00013699,2]
[402258841,1768629039554,-525.04365163,0.00013699,2]
[402258842,1768629039568,-500.0,0.00013699,2]
[402258843,1768629039580,-500.0,0.00013699,2]
[402258844,1768629039590,-500.0,0.0001382,2]
[402258845,1768629039600,-500.0,0.00013821,2]
[402258846,1768629039611,-807.79326057,0.00013821,2]
[402258847,1768629039620,-782.84081577,0.00013821,2]
[402258848,1768629039629,-1000.0,0.00013821,2]
[402258849,1768629039640,-1000.0,0.00013821,2]
[402258850,1768629039649,-1000.0,0.00013821,2]
[402258851,1768629039658,-1000.0,0.00013821,2]
[402258852,1768629039666,-1000.0,0.00013821,2]
[402258853,1768629039677,-1000.0,0.00013821,2]
[402258854,1768629039688,-612.7044457,0.00013821,2]
[402258855,1768629039697,-1000.0,0.00013821,2]
[402258856,1768629039706,-1000.0,0.00013821,2]
[402258857,1768629039716,-1000.0,0.00013821,2]
[402258858,1768629039725,-1000.0,0.00013821,2]
[402258860,1768629039734,-408.995523,0.00013821,2]
[402258862,1768629039744,-1000.0,0.00013821,2]
[402258864,1768629039753,-1000.0,0.00013821,2]
[402258865,1768629039762,-1000.0,0.00013821,2]
[402258866,1768629039772,-332.84054577,0.00013821,2]
[402258867,1768629039782,-1000.0,0.00013821,2]
[402258868,1768629039791,-1000.0,0.00013821,2]
[402258869,1768629039800,-1000.0,0.00013821,2]
[402258870,1768629039809,-1000.0,0.00013821,2]
[402258871,1768629039820,-163.8306564,0.00013973,2]
[402258872,1768629039832,-500.0,0.00014095,2]
[402258873,1768629039842,-151.0,0.000142,2]
[402258874,1768629039852,-600.0,0.00014221,2]
[402258875,1768629039862,-500.0,0.00014246,2]
[402258876,1768629039872,-500.0,0.00014246,2]
[402258877,1768629039881,-503.23906196,0.00014247,2]
[402258878,1768629039891,-1000.0,0.00014247,2]
[402258879,1768629039900,-190.21102875,0.00014247,2]
[402258880,1768629039910,-1001.86082795,0.00014247,2]
[402258881,1768629039918,-1000.0,0.00014247,2]
[402258882,1768629039927,-1000.0,0.00014247,2]
[402258883,1768629039937,-1001.00559058,0.00014247,2]
[402258884,1768629039946,-1000.0,0.00014247,2]
[402258885,1768629039955,-503.80904989,0.00014247,2]
[402258886,1768629039965,-172.39691423,0.00014247,2]
[402258888,1768629039975,-1000.0,0.00014247,2]
[402258890,1768629039984,-1000.0,0.00014247,2]
[402258892,1768629039993,-1000.0,0.00014247,2]
[402258894,1768629040003,-515.19045944,0.00014247,2]
[402258896,1768629040012,-1000.0,0.00014247,2]
[402258898,1768629040022,-497.35034591,0.00014247,2]
[402258900,1768629040034,-1000.0,0.00014247,2]
[402258902,1768629040044,-1000.0,0.00014247,2]
[402258904,1768629040054,-198.98215577,0.00014247,2]
[402258906,1768629040068,-801.01784423,0.00014247,2]
[402258908,1768629040078,-600.95688303,0.00014247,2]
[402258909,1768629040087,-542.72952309,0.00014247,2]
[402258910,1768629040096,-1000.50109538,0.00014247,2]
[402258911,1768629040107,-1000.36039678,0.00014247,2]
[402258912,1768629040117,-1000.0,0.00014247,2]
[402258914,1768629040127,-1000.0,0.00014247,2]
[402258916,1768629040137,-1000.0,0.00014247,2]
[402258918,1768629040147,-855.89787486,0.00014247,2]
[402258921,1768629040159,-144.10212514,0.00014247,2]
[402258923,1768629040170,-1000.0,0.00014247,2]
[402258925,1768629040179,-957.90085733,0.00014247,2]
[402258927,1768629040189,-500.73107514,0.00014247,2]
[402258929,1768629040198,-1000.0,0.00014247,2]
[402258931,1768629040208,-1000.0,0.00014247,2]
[402258933,1768629040217,-255.83624559,0.00014247,2]
[402258935,1768629040228,-1000.0,0.00014247,2]
[402258936,1768629040237,-1000.0,0.00014247,2]
[402258939,1768629040247,-1000.0,0.00014247,2]
[402258941,1768629040257,-225.30327726,0.00014247,2]
[402258942,1768629040267,-1000.75375404,0.00014247,2]
[402258945,1768629040277,-1000.0,0.00014247,2]
[402258947,1768629040288,-1000.0,0.00014247,2]
[402258948,1768629040300,-500.0,0.00014368,2]
[402258951,1768629040309,-500.0,0.00014368,2]
[402258952,1768629040319,-1500.0,0.00014368,2]
[402258955,1768629040328,-1500.0,0.00014368,2]
[402258956,1768629040338,-1500.0,0.00014368,2]
[402258958,1768629040347,-1500.0,0.00014368,2]
[402258960,1768629040357,-1000.0,0.00014368,2]
[402258962,1768629040366,-1500.0,0.00014368,2]
[402258964,1768629040375,-1500.0,0.00014368,2]
[402258966,1768629040385,-33.41291029,0.00014368,2]
[402258969,1768629040398,-471.3797046,0.00014368,2]
[402258971,1768629040409,-224.32333904,0.00014368,2]
[402258973,1768629040419,-1500.0,0.00014368,2]
[402258974,1768629040429,-1500.0,0.00014368,2]
[402258977,1768629040440,-781.86013002,0.00014368,2]
[402258978,1768629040449,-592.31797826,0.00014368,2]
[402258980,1768629040459,-1500.0,0.00014368,2]
[402258982,1768629040468,-1500.0,0.00014368,2]
[402258984,1768629040478,-501.71594678,0.00014368,2]
[402258986,1768629040487,-1500.0,0.00014368,2]
[402258988,1768629040496,-151.0,0.000146,2]
[402258990,1768629040506,-587.0,0.00014625,2]
[402258992,1768629040516,-504.39394044,0.00014642,2]
[402258994,1768629040525,-1500.0,0.00014795,2]
[402258997,1768629040535,-464.5715499,0.00014805,2]
[402258999,1768629040544,-749.5762533,0.00014813,2]
[402259000,1768629040553,-1404.72503397,0.00014816,2]
[402259003,1768629040568,-151.75679599,0.000149,2]
[402259005,1768629040577,-1100.64355257,0.00014916,2]
[402259007,1768629040586,-151.0,0.00015,2]
[402259009,1768629040596,-151.0,0.00015,2]
[402259010,1768629040604,-1391.74798117,0.00015,2]
[402259012,1768629040614,-2000.0,0.00015342,2]
[402259014,1768629040623,-151.0,0.000154,2]
[402259016,1768629040632,-151.0,0.000154,2]
[402259018,1768629040641,-251.4812345,0.00015666,2]
[402259020,1768629040651,-151.0,0.000158,2]
[402259022,1768629040660,-151.0,0.000158,2]
[402259024,1768629040670,-250.0,0.00015829,2]
[402259026,1768629040680,-1404.72503393,0.00015882,2]
[402259028,1768629040691,-2500.0,0.0001589,2]
[402259031,1768629040700,-823.0,0.00016053,2]
[402259033,1768629040710,-151.0,0.000161,2]
[402259035,1768629040719,-151.0,0.000161,2]
[402259037,1768629040729,-464.5715499,0.00016338,2]
[402259039,1768629040738,-749.5762533,0.00016354,2]
[402259041,1768629040747,-200.0,0.00016473,2]
[402259043,1768629040757,-500.0,0.00016499,2]
[402259045,1768629040767,-151.0,0.000165,2]
[402259047,1768629040776,-151.0,0.000165,2]
[402259049,1768629040785,-1476.9155709,0.00016717,2]
[402259050,1768629040794,-151.0,0.000169,2]
[402259053,1768629040804,-151.0,0.000169,2]
[402259054,1768629040813,-1404.72503393,0.00016947,2]
[402259056,1768629040823,-151.0,0.000173,2]
[402259059,1768629040832,-151.0,0.000173,2]
[402259061,1768629040842,-540.33671139,0.00017561,2]
[402259063,1768629040852,-151.0,0.000176,2]
[402259065,1768629040861,-151.0,0.000176,2]
[402259073,1768629040935,-852.0,0.0001762,2]
[402259075,1768629040945,-500.0,0.00017624,2]
[402259077,1768629040955,-500.0,0.00017624,2]
[402259079,1768629040966,-284.76551554,0.00017666,2]
[402259081,1768629040978,-500.0,0.00017711,2]
[402259083,1768629040988,-500.0,0.00017711,2]
[402259085,1768629041004,-481.10674529,0.00017842,2]
[402259087,1768629041014,-464.5715499,0.00017872,2]
[402259089,1768629041024,-339.6184142,0.0001789,2]
[402259091,1768629041033,-749.5762533,0.00017896,2]
[402259093,1768629041042,-500.0,0.00017989,2]
[402259095,1768629041051,-285.90496763,0.00017989,2]
[402259097,1768629041062,-151.0,0.0001799,2]
[402259100,1768629041072,-151.0,0.0001799,2]
[402259102,1768629041082,-151.0,0.0001799,2]
[402259104,1768629041091,-151.0,0.0001799,2]
[402259106,1768629041101,-181.119152,0.0001799,2]
[402259108,1768629041110,-100000.0,0.0001799,2]
[402259110,1768629041120,-1404.72503393,0.00018013,2]
[402259111,1768629041130,-13149.2996062,0.00018014,2]
[402259113,1768629041143,-151.0,0.00018016,2]
[402259115,1768629041152,-151.0,0.00018016,2]
[402259117,1768629041161,-151.0,0.00018016,2]
[402259119,1768629041170,-151.0,0.00018016,2]
[402259121,1768629041179,-151.0,0.00018016,2]
[402259123,1768629041189,-445.202766,0.00018025,2]
[402259125,1768629041198,-2150.738,0.00018025,2]
[402259127,1768629041207,-1041.66666667,0.00018568,2]
[402259129,1768629041216,-461.67526834,0.00018573,2]
[402259131,1768629041226,-2230.315306,0.00018573,2]
[402259133,1768629041235,-93317.76799315,0.0001862,2]
[402259135,1768629041244,-267.985,0.00018639,2]
[402259137,1768629041253,-151.0,0.00018711,2]